fUSD/lending_fUSD_20251023
["ID","MTS","AMOUNT","RATE_DAILY","PERIOD"]
[392154233,1761217834807,-500.0,0.00043835,120]
[392154234,1761217834821,-500.0,0.00043835,120]
[392154235,1761217834834,-540.03,0.00043835,120]
[392154236,1761217834847,-500.0,0.00043835,120]
[392154237,1761217834860,-500.0,0.00043835,120]
[392154238,1761217834873,-150.0,0.00043862,30]
[392154239,1761217834887,-150.0,0.00043883,30]
[392154240,1761217834899,-150.0,0.00043883,30]
[392154241,1761217834912,-150.0,0.00043883,30]
[392154242,1761217834924,-150.0,0.00043883,30]
[392154243,1761217834938,-150.0,0.00043883,30]
[392154244,1761217834950,-200.0,0.00043899,2]
[392154245,1761217834962,-2500.0,0.000439,16]
[392154246,1761217834974,-226936.79251979,0.0004391,3]
[392154247,1761217834992,-27365.92465921,0.0004391,3]
[392154248,1761217835005,-3822.036968,0.0004391,3]
[392154249,1761217835020,-5300.73327905,0.0004391,3]
[392154250,1761217835083,-16274.20704564,0.0004391,3]
[392154251,1761217835096,-1305.0,0.0004391,3]
[392154254,1761217838362,-500.0,0.00043835,120]
[392154255,1761217838372,-10.45374052,0.0004391,3]
[392154256,1761217838388,-693.89683839,0.0004391,3]
[392154257,1761217838972,-250.0,0.00042999,31]
[392154258,1761217838982,-956.25435606,0.0004391,3]
[392154259,1761217838994,-271616.56680034,0.0004391,3]
[392154260,1761217839004,-952.17012909,0.0004391,7]
[392154261,1761217839013,-150.32,0.0004391,2]
[392154262,1761217839023,-150.32,0.0004391,2]
[392154263,1761217839033,-150.32,0.0004391,2]
[392154264,1761217839042,-150.32,0.0004391,2]
[392154265,1761217839051,-150.32,0.0004391,2]
[392154266,1761217839061,-150.32,0.0004391,2]
[392154267,1761217839071,-150.32,0.0004391,2]
[392154268,1761217839081,-150.32,0.0004391,2]
[392154269,1761217839091,-150.32,0.0004391,2]
[392154270,1761217839101,-150.32,0.0004391,2]
[392154271,1761217839111,-150.32,0.0004391,2]
[392154272,1761217839121,-150.32,0.0004391,2]
[392154273,1761217839131,-150.32,0.0004391,2]
[392154274,1761217839141,-150.32,0.0004391,2]
[392154275,1761217839150,-150.32,0.0004391,2]
[392154276,1761217839160,-150.32,0.0004391,2]
[392154277,1761217839170,-150.32,0.0004391,2]
[392154278,1761217839180,-150.32,0.0004391,2]
[392154279,1761217839190,-150.32,0.0004391,2]
[392154280,1761217839199,-150.32,0.0004391,2]
[392154281,1761217839209,-150.32,0.0004391,2]
[392154282,1761217839219,-150.32,0.0004391,2]
[392154283,1761217839229,-150.32,0.0004391,2]
[392154284,1761217839242,-150.32,0.0004391,2]
[392154285,1761217839252,-150.32,0.0004391,2]
[392154286,1761217839263,-256.33,0.0004391,30]
[392154287,1761217839272,-500.0,0.00043919,120]
[392154288,1761217839283,-500.0,0.00043919,120]
[392154289,1761217839292,-500.0,0.00043919,120]
[392154290,1761217839303,-500.0,0.00043919,120]
[392154291,1761217839313,-576.28074217,0.00043919,120]
[392154292,1761217839322,-3413.0,0.0004392,7]
[392154293,1761217839331,-2517075.97688055,0.0004392,120]
[392154294,1761217839341,-16344.04554745,0.00043931,15]
[392154295,1761217839351,-201.5261164,0.00043938,30]
[392154296,1761217839365,-150.0,0.00043938,30]
[392154297,1761217839374,-150.0,0.00043938,30]
[392154298,1761217839385,-150.0,0.00043938,30]
[392154299,1761217839395,-275.8417244,0.00043938,30]
[392154300,1761217839405,-241.72,0.00043949,120]
[392154301,1761217839416,-500.0,0.00043973,10]
[392154302,1761217839426,-502.2471513,0.00043973,10]
[392154303,1761217839436,-569.05775606,0.00043973,10]
[392154304,1761217839446,-500.0,0.00043973,10]
[392154305,1761217839455,-500.0,0.00043973,2]
[392154306,1761217839465,-500.0,0.00043973,10]
[392154307,1761217839473,-500.0,0.00043973,5]
[392154308,1761217839482,-500.0,0.00043973,10]
[392154309,1761217839491,-500.0,0.00043973,10]
[392154310,1761217839502,-500.0,0.00043973,10]
[392154311,1761217839513,-500.0,0.00043973,10]
[392154312,1761217839523,-500.0,0.00043973,10]
[392154313,1761217839532,-500.0,0.00043973,10]
[392154314,1761217839541,-150.0,0.00043992,30]
[392154315,1761217839551,-244.17023834,0.00043992,30]
[392154316,1761217839561,-1200.0,0.00044,30]
[392154317,1761217839571,-449.999999,0.00044,120]
[392154318,1761217839581,-150.32,0.00044042,2]
[392154319,1761217839591,-16344.04554745,0.00044052,15]
[392154320,1761217839603,-150.0,0.00044087,30]
[392154321,1761217839615,-150.0,0.00044087,30]
[392154322,1761217839624,-500.0,0.00044109,120]
[392154323,1761217839634,-500.0,0.00044109,120]
[392154324,1761217839643,-500.0,0.00044109,120]
[392154325,1761217839655,-500.0,0.00044109,120]
[392154326,1761217839665,-500.0,0.00044109,120]
[392154327,1761217839674,-500.0,0.00044109,120]
[392154328,1761217839683,-500.0,0.00044109,120]
[392154329,1761217839692,-500.0,0.00044109,120]
[392154330,1761217839701,-500.0,0.00044109,120]
[392154331,1761217839711,-540.03,0.00044109,120]
[392154332,1761217839721,-500.0,0.00044109,120]
[392154333,1761217839731,-500.0,0.00044109,120]
[392154334,1761217839740,-500.0,0.00044109,120]
[392154335,1761217839749,-164.36809569,0.00044128,15]
[392154336,1761217839759,-16344.04554745,0.00044173,15]
[392154337,1761217839769,-150.0,0.00044237,30]
[392154338,1761217839779,-150.0,0.00044237,30]
[392154339,1761217839788,-16344.04554745,0.00044294,15]
[392154340,1761217839797,-365.0,0.00044306,7]
[392154341,1761217839806,-150.0,0.00044344,30]
[392154342,1761217839815,-1000.0,0.00044349,14]
[392154343,1761217839824,-1425.0,0.00044357,2]
[392154344,1761217839833,-150.0,0.0004437,14]
[392154345,1761217839843,-500.0,0.00044383,120]
[392154346,1761217839852,-500.0,0.00044383,120]
[392154347,1761217839862,-500.0,0.00044383,120]
[392154348,1761217839872,-454.15259006,0.00044383,120]
[392154349,1761217839882,-500.0,0.00044383,120]
[392154350,1761217839891,-500.0,0.00044383,120]
[392154351,1761217839900,-500.0,0.00044383,120]
[392154352,1761217839909,-500.0,0.00044383,120]
[392154353,1761217839918,-540.03,0.00044383,120]
[392154354,1761217839928,-500.0,0.00044383,120]
[392154355,1761217839937,-500.0,0.00044383,120]
[392154356,1761217839947,-500.0,0.00044383,120]
[392154357,1761217839956,-168.0,0.00044387,2]
[392154358,1761217839966,-279.55863956,0.0004439,2]
[392154359,1761217839975,-151.97898848,0.000444,14]
[392154360,1761217839984,-16344.04554745,0.00044416,15]
[392154361,1761217839994,-164.36809569,0.00044446,15]
[392154362,1761217840003,-150.0,0.00044466,14]
[392154363,1761217840012,-1425.0,0.00044473,2]
[392154364,1761217840021,-150.0,0.00044484,14]
[392154365,1761217840030,-1000.0,0.00044485,14]
[392154366,1761217840041,-1000.0,0.0004449,14]
[392154367,1761217840050,-1000.0,0.00044499,14]
[392154368,1761217840059,-150.0,0.00044514,14]
[392154369,1761217840069,-674.02941388,0.00044514,30]
[392154370,1761217840079,-500.0,0.00044521,10]
[392154371,1761217840088,-500.0,0.00044521,2]
[392154372,1761217840098,-500.0,0.00044521,10]
[392154373,1761217840107,-1000.0,0.00044521,10]
[392154374,1761217840117,-1000.0,0.00044521,10]
[392154375,1761217840126,-150.0,0.00044536,30]
[392154376,1761217840135,-380.50534398,0.00044536,120]
[392154377,1761217840144,-16344.04554745,0.00044537,15]
[392154378,1761217840154,-212.94,0.00044543,14]
[392154379,1761217840163,-3383.45786,0.0004455,23]
[392154380,1761217840172,-657.35489017,0.00044571,2]
[392154381,1761217840182,-1000.0,0.00044572,14]
[392154382,1761217840192,-1756.00081294,0.00044579,2]
[392154383,1761217840201,-150.32,0.00044586,2]
[392154384,1761217840210,-1000.0,0.00044591,14]
[392154385,1761217840220,-1000.0,0.00044596,30]
[392154386,1761217840230,-500.0,0.00044596,120]
[392154388,1761217840239,-500.0,0.00044596,120]
[392154389,1761217840248,-500.0,0.00044596,120]
[392154390,1761217840258,-500.0,0.00044596,30]
[392154391,1761217840267,-500.0,0.00044596,120]
[392154392,1761217840276,-500.0,0.00044596,120]
[392154393,1761217840286,-500.0,0.00044596,120]
[392154394,1761217840296,-500.0,0.00044596,120]
[392154395,1761217840305,-301.70690505,0.00044596,2]
[392154396,1761217840314,-500.0,0.00044596,120]
[392154397,1761217840323,-500.0,0.00044596,120]
[392154398,1761217840332,-500.0,0.00044596,120]
[392154399,1761217840341,-500.0,0.00044596,120]
[392154400,1761217840350,-337.61165484,0.00044596,120]
[392154401,1761217840364,-500.0,0.00044596,120]
[392154402,1761217840382,-500.0,0.00044596,120]
[392154403,1761217840392,-500.0,0.00044596,120]
[392154404,1761217840402,-500.0,0.00044596,120]
[392154405,1761217840412,-503.14,0.00044596,120]
[392154406,1761217840421,-500.0,0.00044596,120]
[392154407,1761217840430,-500.0,0.00044596,120]
[392154408,1761217840440,-163.74212952,0.00044596,120]
[392154409,1761217840451,-500.0,0.00044596,120]
[392154410,1761217840462,-500.0,0.00044596,120]
[392154411,1761217840472,-500.0,0.00044596,120]
[392154412,1761217840482,-500.0,0.00044596,30]
[392154413,1761217840491,-500.0,0.00044596,120]
[392154414,1761217840501,-202.70375635,0.00044596,7]
[392154415,1761217840511,-500.0,0.00044596,120]
[392154416,1761217840521,-500.0,0.00044596,30]
[392154417,1761217840531,-780.92,0.00044596,120]
[392154418,1761217840540,-644.92441761,0.00044596,120]
[392154419,1761217840549,-500.0,0.00044596,120]
[392154420,1761217840558,-500.0,0.00044596,120]
[392154421,1761217840568,-500.0,0.00044596,120]
[392154422,1761217840577,-774.04,0.00044596,120]
[392154423,1761217840587,-404.41706389,0.00044596,120]
[392154424,1761217840597,-500.0,0.00044596,120]
[392154425,1761217840607,-500.0,0.00044596,120]
[392154426,1761217840616,-500.0,0.00044596,120]
[392154427,1761217840626,-500.0,0.00044596,60]
[392154428,1761217840637,-500.0,0.00044596,120]
[392154429,1761217840648,-500.0,0.00044596,120]
[392154430,1761217840658,-500.0,0.00044596,120]
[392154431,1761217840668,-500.0,0.00044596,120]
[392154432,1761217840677,-500.0,0.00044596,2]
[392154433,1761217840686,-500.0,0.00044596,120]
[392154434,1761217840696,-532.51,0.00044596,120]
[392154435,1761217840705,-500.0,0.00044596,120]
[392154436,1761217840715,-500.0,0.00044596,120]
[392154437,1761217840727,-500.0,0.00044596,120]
[392154438,1761217840736,-500.0,0.00044596,120]
[392154439,1761217840746,-612.46,0.00044596,120]
[392154440,1761217840756,-500.0,0.00044596,120]
[392154441,1761217840766,-787.16,0.00044596,120]
[392154442,1761217840776,-500.0,0.00044596,120]
[392154443,1761217840785,-500.0,0.00044596,120]
[392154444,1761217840794,-499.74001188,0.00044596,120]
[392154445,1761217840803,-506.44304037,0.00044596,120]
[392154446,1761217840813,-516.9666162,0.00044596,120]
[392154447,1761217840822,-493.04772946,0.00044596,120]
[392154448,1761217840831,-500.0,0.00044596,120]
[392154449,1761217840841,-6412.86,0.00044596,120]
[392154450,1761217840850,-500.0,0.00044596,120]
[392154451,1761217840859,-406.24349975,0.00044596,2]
[392154452,1761217840869,-500.0,0.00044596,120]
[392154453,1761217840881,-500.0,0.00044596,120]
[392154454,1761217840891,-529.92,0.00044596,120]
[392154455,1761217840900,-558.57,0.00044596,120]
[392154456,1761217840909,-681.78,0.00044596,120]
[392154457,1761217840919,-500.0,0.00044596,120]
[392154458,1761217840929,-733.16,0.00044596,120]
[392154459,1761217840938,-500.0,0.00044596,120]
[392154460,1761217840947,-681.15,0.00044596,120]
[392154461,1761217840957,-500.0,0.00044596,120]
[392154462,1761217840966,-500.0,0.00044596,120]
[392154463,1761217840976,-500.0,0.00044596,120]
[392154464,1761217840985,-500.0,0.00044596,120]
[392154465,1761217840995,-500.0,0.00044596,120]
[392154466,1761217841004,-500.0,0.00044596,120]
[392154467,1761217841016,-500.0,0.00044596,120]
[392154468,1761217841026,-500.0,0.00044596,120]
[392154469,1761217841036,-628.4,0.00044596,120]
[392154470,1761217841046,-500.0,0.00044596,120]
[392154471,1761217841207,-500.0,0.00044596,120]
[392154472,1761217841218,-249.53737804,0.00044596,90]
[392154473,1761217841228,-500.0,0.00044596,120]
[392154474,1761217841237,-500.0,0.00044596,120]
[392154475,1761217841250,-500.0,0.00044596,120]
[392154476,1761217841259,-500.0,0.00044596,120]
[392154477,1761217841269,-500.0,0.00044596,120]
[392154478,1761217841280,-500.0,0.00044596,120]
[392154479,1761217841290,-500.0,0.00044596,120]
[392154480,1761217841299,-500.0,0.00044596,120]
[392154481,1761217841310,-500.0,0.00044596,120]
[392154482,1761217841319,-500.0,0.00044596,2]
[392154483,1761217841329,-840.08,0.00044596,120]
[392154484,1761217841339,-500.0,0.00044596,120]
[392154485,1761217841348,-175.59634812,0.00044596,120]
[392154486,1761217841364,-500.0,0.00044596,120]
[392154487,1761217841374,-500.0,0.00044596,120]
[392154488,1761217841383,-500.0,0.00044596,120]
[392154489,1761217841394,-500.0,0.00044596,120]
[392154490,1761217841403,-500.0,0.00044596,12]
[392154491,1761217841412,-500.0,0.00044596,120]
[392154492,1761217841421,-500.0,0.00044596,120]
[392154493,1761217841433,-500.0,0.00044596,120]
[392154494,1761217841443,-500.0,0.00044596,120]
[392154495,1761217841453,-300.0,0.00044596,120]
[392154496,1761217841462,-500.0,0.00044596,120]
[392154497,1761217841471,-500.0,0.00044596,30]
[392154498,1761217841481,-500.0,0.00044596,120]
[392154499,1761217841491,-500.0,0.00044596,120]
[392154500,1761217841502,-500.0,0.00044596,120]
[392154501,1761217841511,-500.0,0.00044596,120]
[392154502,1761217841522,-500.0,0.00044596,120]
[392154503,1761217841531,-561.72,0.00044596,120]
[392154504,1761217841541,-500.0,0.00044596,120]
[392154505,1761217841550,-500.0,0.00044596,120]
[392154506,1761217841561,-500.0,0.00044596,120]
[392154507,1761217841571,-500.0,0.00044596,120]
[392154508,1761217841581,-533.07,0.00044596,120]
[392154509,1761217841590,-500.0,0.00044596,120]
[392154510,1761217841600,-674.63,0.00044596,120]
[392154511,1761217841610,-1034.38,0.00044596,120]
[392154512,1761217841619,-543.29,0.00044596,120]
[392154513,1761217841630,-1425.0,0.00044603,2]
[392154514,1761217841639,-2157.07982214,0.00044612,120]
[392154515,1761217841648,-199.18575029,0.00044612,19]
[392154516,1761217841658,-1425.0,0.00044634,2]
[392154517,1761217841667,-150.0,0.0004465,14]
[392154518,1761217841676,-235.83590057,0.00044657,120]
[392154519,1761217841686,-500.0,0.00044657,120]
[392154520,1761217841695,-500.0,0.00044657,120]
[392154521,1761217841706,-500.0,0.00044657,120]
[392154522,1761217841715,-500.0,0.00044657,120]
[392154523,1761217841725,-500.0,0.00044657,120]
[392154524,1761217841734,-500.0,0.00044657,120]
[392154525,1761217841744,-540.03,0.00044657,120]
[392154526,1761217841754,-500.0,0.00044657,120]
[392154527,1761217841764,-500.0,0.00044657,120]
[392154528,1761217841774,-500.0,0.00044657,120]
[392154529,1761217841784,-16344.04554745,0.00044658,15]
[392154530,1761217841796,-150.32,0.00044661,2]
[392154531,1761217841812,-1000.0,0.00044661,14]
[392154532,1761217841822,-500.0,0.0004467,120]
[392154533,1761217841832,-500.0,0.0004467,120]
[392154534,1761217841842,-500.0,0.0004467,120]
[392154535,1761217841851,-500.0,0.0004467,120]
[392154536,1761217841863,-500.0,0.0004467,120]
[392154537,1761217841878,-500.0,0.0004467,120]
[392154538,1761217841888,-2487.57,0.0004467,120]
[392154539,1761217841898,-500.0,0.0004467,120]
[392154540,1761217841907,-1474.39,0.0004467,120]
[392154541,1761217841917,-500.0,0.0004467,120]
[392154542,1761217841927,-500.0,0.0004467,120]
[392154543,1761217841937,-500.0,0.0004467,120]
[392154544,1761217841947,-500.0,0.0004467,120]
[392154545,1761217841957,-500.0,0.0004467,120]
[392154546,1761217841967,-500.0,0.0004467,120]
[392154547,1761217841978,-500.0,0.0004467,120]
[392154548,1761217841988,-2102.24,0.0004467,30]
[392154549,1761217841998,-500.0,0.0004467,120]
[392154550,1761217842012,-500.0,0.0004467,120]
[392154551,1761217842021,-1292.99,0.0004467,120]
[392154552,1761217842031,-500.0,0.0004467,120]
[392154553,1761217842041,-500.0,0.0004467,120]
[392154554,1761217842051,-500.0,0.0004467,120]
[392154555,1761217842060,-2019.21,0.0004467,120]
[392154556,1761217842070,-500.0,0.0004467,120]
[392154557,1761217842080,-500.0,0.0004467,120]
[392154558,1761217842090,-33161.3116,0.00044671,2]
[392154559,1761217842100,-1425.0,0.00044675,2]
[392154560,1761217842110,-1425.0,0.00044689,2]
[392154561,1761217842120,-150.0,0.00044689,14]
[392154562,1761217842130,-580.24976086,0.000447,28]
[392154563,1761217842140,-3100.0,0.000447,16]
[392154564,1761217842151,-1425.0,0.00044717,2]
[392154565,1761217842161,-1000.0,0.00044731,2]
[392154566,1761217842171,-5000.0,0.00044756,120]
[392154567,1761217842181,-1000.0,0.00044759,14]
[392154568,1761217842191,-1000.0,0.00044761,14]
[392154569,1761217842200,-164.36809569,0.00044764,15]
[392154570,1761217842210,-1425.0,0.00044768,2]
[392154571,1761217842220,-2100.0,0.0004477,30]
[392154572,1761217842229,-16191.1932,0.00044771,2]
[392154573,1761217842239,-212.94,0.00044771,14]
[392154574,1761217842249,-16344.04554745,0.00044779,15]
[392154575,1761217842259,-1425.0,0.0004478,2]
[392154576,1761217842268,-192.57926527,0.00044785,30]
[392154577,1761217842278,-160.79188139,0.000448,28]
[392154578,1761217842288,-580.24976083,0.000448,28]
[392154579,1761217842297,-600.0,0.000448,16]
[392154580,1761217842307,-150.0,0.00044803,14]
[392154581,1761217842316,-683.0878869,0.00044814,2]
[392154582,1761217842325,-952.17012909,0.00044829,7]
[392154583,1761217842336,-500.0,0.00044834,120]
[392154584,1761217842345,-500.0,0.00044834,30]
[392154585,1761217842354,-500.0,0.00044834,120]
[392154586,1761217842364,-1000.0,0.00044837,14]
[392154587,1761217842374,-958.32,0.00044839,120]
[392154588,1761217842383,-552.36,0.00044839,120]
[392154589,1761217842393,-502.54525359,0.00044839,120]
[392154590,1761217842403,-500.0,0.00044839,30]
[392154591,1761217842413,-500.0,0.00044839,120]
[392154592,1761217842422,-537.22,0.00044839,120]
[392154593,1761217842432,-519.54,0.00044839,120]
[392154594,1761217842441,-500.0,0.00044839,120]
[392154595,1761217842451,-500.0,0.00044839,120]
[392154596,1761217842461,-500.0,0.00044839,120]
[392154597,1761217842470,-614.78,0.00044839,120]
[392154598,1761217842479,-500.0,0.00044839,120]
[392154599,1761217842489,-500.0,0.00044839,120]
[392154600,1761217842498,-500.0,0.00044839,120]
[392154601,1761217842507,-743.89,0.00044839,120]
[392154602,1761217842519,-500.0,0.00044839,120]
[392154603,1761217842529,-500.0,0.00044839,120]
[392154604,1761217842539,-500.0,0.00044839,120]
[392154605,1761217842550,-500.0,0.00044839,120]
[392154606,1761217842560,-500.0,0.00044839,120]
[392154607,1761217842569,-500.0,0.00044839,120]
[392154608,1761217842579,-507.97,0.00044839,120]
[392154609,1761217842589,-508.86800937,0.00044839,120]
[392154610,1761217842599,-500.0,0.00044839,120]
[392154611,1761217842609,-508.82861663,0.00044839,120]
[392154612,1761217842618,-500.0,0.00044839,120]
[392154613,1761217842628,-500.0,0.00044839,120]
[392154614,1761217842638,-529.91,0.00044839,120]
[392154615,1761217842647,-500.0,0.00044839,120]
[392154616,1761217842657,-701.22,0.00044839,120]
[392154617,1761217842666,-500.0,0.00044839,120]
[392154618,1761217842677,-500.0,0.00044839,120]
[392154619,1761217842686,-500.0,0.00044839,120]
[392154620,1761217842696,-527.16668758,0.00044839,120]
[392154621,1761217842705,-1701.563472,0.00044839,2]
[392154622,1761217842716,-657.35489017,0.00044844,2]
[392154623,1761217842725,-168.0,0.00044852,2]
[392154624,1761217842734,-1000.0,0.00044854,14]
[392154625,1761217842744,-366.0,0.00044858,120]
[392154626,1761217842753,-500.0,0.0004487,120]
[392154627,1761217842766,-500.0,0.0004487,120]
[392154628,1761217842776,-500.0,0.0004487,120]
[392154629,1761217842785,-500.0,0.0004487,30]
[392154630,1761217842794,-500.0,0.0004487,120]
[392154631,1761217842803,-500.0,0.0004487,120]
[392154632,1761217842813,-500.0,0.0004487,120]
[392154633,1761217842822,-500.0,0.0004487,120]
[392154634,1761217842831,-500.0,0.0004487,120]
[392154635,1761217842841,-500.0,0.0004487,120]
[392154636,1761217842851,-500.0,0.0004487,120]
[392154637,1761217842860,-199.86043732,0.0004487,120]
[392154638,1761217842869,-500.0,0.0004487,120]
[392154639,1761217842879,-500.0,0.0004487,120]
[392154640,1761217842888,-500.0,0.0004487,120]
[392154641,1761217842898,-503.14,0.0004487,120]
[392154642,1761217842907,-500.0,0.0004487,120]
[392154643,1761217842916,-500.0,0.0004487,120]
[392154644,1761217842926,-500.0,0.0004487,120]
[392154645,1761217842935,-500.0,0.0004487,120]
[392154646,1761217842944,-500.0,0.0004487,120]
[392154647,1761217842955,-500.0,0.0004487,30]
[392154648,1761217842965,-500.0,0.0004487,120]
[392154649,1761217842975,-226.2825107,0.0004487,120]
[392154650,1761217842985,-500.0,0.0004487,30]
[392154651,1761217842996,-780.92,0.0004487,120]
[392154652,1761217843005,-500.0,0.0004487,120]
[392154653,1761217843015,-500.0,0.0004487,120]
[392154654,1761217843025,-500.0,0.0004487,120]
[392154655,1761217843035,-774.04,0.0004487,120]
[392154657,1761217843044,-500.0,0.0004487,120]
[392154658,1761217843053,-500.0,0.0004487,120]
[392154660,1761217843063,-500.0,0.0004487,120]
[392154662,1761217843073,-500.0,0.0004487,60]
[392154664,1761217843082,-500.0,0.0004487,120]
[392154666,1761217843092,-500.0,0.0004487,120]
[392154667,1761217843101,-500.0,0.0004487,120]
[392154668,1761217843111,-500.0,0.0004487,120]
[392154669,1761217843121,-500.0,0.0004487,2]
[392154670,1761217843130,-567.26786264,0.0004487,120]
[392154672,1761217843139,-532.51,0.0004487,120]
[392154673,1761217843149,-500.0,0.0004487,120]
[392154674,1761217843158,-500.0,0.0004487,120]
[392154675,1761217843168,-500.0,0.0004487,120]
[392154676,1761217843177,-500.0,0.0004487,120]
[392154677,1761217843187,-612.46,0.0004487,120]
[392154678,1761217843197,-500.0,0.0004487,120]
[392154679,1761217843207,-787.16,0.0004487,120]
[392154680,1761217843217,-500.0,0.0004487,120]
[392154681,1761217843227,-500.0,0.0004487,120]
[392154682,1761217843237,-509.14034949,0.0004487,120]
[392154683,1761217843247,-6412.86,0.0004487,120]
[392154684,1761217843256,-500.0,0.0004487,120]
[392154686,1761217843265,-500.0,0.0004487,120]
[392154687,1761217843275,-235.5100079,0.0004487,120]
[392154688,1761217843285,-529.92,0.0004487,120]
[392154689,1761217843293,-558.57,0.0004487,120]
[392154690,1761217843303,-681.78,0.0004487,120]
[392154691,1761217843312,-500.0,0.0004487,120]
[392154692,1761217843321,-733.16,0.0004487,120]
[392154693,1761217843330,-500.0,0.0004487,120]
[392154694,1761217843339,-681.15,0.0004487,120]
[392154695,1761217843349,-500.0,0.0004487,120]
[392154696,1761217843363,-379.32053243,0.0004487,120]
[392154697,1761217843372,-500.0,0.0004487,120]
[392154698,1761217843382,-500.0,0.0004487,120]
[392154699,1761217843391,-500.0,0.0004487,120]
[392154700,1761217843400,-500.0,0.0004487,120]
[392154701,1761217843409,-628.4,0.0004487,120]
[392154702,1761217843419,-500.0,0.0004487,120]
[392154703,1761217843428,-500.0,0.0004487,120]
[392154704,1761217843437,-500.0,0.0004487,120]
[392154705,1761217843446,-500.0,0.0004487,120]
[392154706,1761217843456,-500.0,0.0004487,120]
[392154707,1761217843465,-500.0,0.0004487,120]
[392154708,1761217843474,-500.0,0.0004487,120]
[392154709,1761217843484,-500.0,0.0004487,120]
[392154710,1761217843494,-500.0,0.0004487,120]
[392154711,1761217843503,-517.59894578,0.0004487,120]
[392154712,1761217843513,-500.0,0.0004487,120]
[392154713,1761217843523,-500.0,0.0004487,2]
[392154714,1761217843533,-840.08,0.0004487,120]
[392154715,1761217843542,-500.0,0.0004487,120]
[392154716,1761217843551,-500.0,0.0004487,120]
[392154717,1761217843561,-500.0,0.0004487,120]
[392154718,1761217843570,-500.0,0.0004487,12]
[392154719,1761217843579,-539.75608841,0.0004487,120]
[392154720,1761217843588,-500.0,0.0004487,120]
[392154721,1761217843598,-500.0,0.0004487,120]
[392154722,1761217843607,-500.0,0.0004487,120]
[392154723,1761217843617,-300.0,0.0004487,120]
[392154724,1761217843626,-500.0,0.0004487,120]
[392154725,1761217843636,-500.0,0.0004487,120]
[392154726,1761217843645,-500.0,0.0004487,120]
[392154727,1761217843654,-500.0,0.0004487,120]
[392154728,1761217843663,-567.54843112,0.0004487,120]
[392154729,1761217843673,-500.0,0.0004487,120]
[392154730,1761217843682,-561.72,0.0004487,120]
[392154731,1761217843691,-508.19482781,0.0004487,120]
[392154732,1761217843700,-500.0,0.0004487,120]
[392154733,1761217843711,-500.0,0.0004487,120]
[392154734,1761217843720,-533.07,0.0004487,120]
[392154735,1761217843730,-500.0,0.0004487,120]
[392154736,1761217843739,-674.63,0.0004487,120]
[392154737,1761217843748,-1034.38,0.0004487,120]
[392154739,1761217843757,-543.29,0.0004487,120]
[392154741,1761217843766,-527.14,0.00044871,120]
[392154743,1761217843776,-500.0,0.00044871,120]
[392154746,1761217843788,-598.35,0.00044871,120]
[392154747,1761217843797,-546.64,0.00044871,120]